bitfinex/quotes_ETHUSD_20251009
["timestamp","ask_amount","ask_price","bid_price","bid_amount"]
[1760030825136,2.32374401,4303.4,4302.8,2.439]
[1760030825335,2.32382247,4303.3,4302.8,2.439]
[1760030825899,2.43972788,4303.5,4302.9,0.02324014]
[1760030826220,2.32385397,4303.2,4302.8,0.116]
[1760030826421,2.32385397,4303.2,4302.9,9.052]
[1760030826621,0.116,4303.5,4302.9,9.052]
[1760030826821,2.43971196,4303.5,4302.9,9.052]
[1760030827142,2.32380417,4303.3,4302.9,9.052]
[1760030827498,2.3237492,4303.4,4302.9,9.052]
[1760030827836,2.43970646,4303.5,4303.0,0.39936138]
[1760030828035,0.116,4303.5,4303.0,0.83862178]
[1760030828332,2.32380708,4303.3,4302.9,9.052]
[1760030828534,2.32385204,4303.2,4302.9,9.052]
[1760030828742,2.323804,4303.3,4302.9,9.052]
[1760030829747,0.116,4303.5,4303.0,0.4857396]
[1760030829976,2.43970625,4303.5,4303.1,0.96537396]
[1760030830104,0.4381,4304.4,4303.2,0.02323852]
[1760030830305,2.32352804,4303.8,4303.1,0.96537396]
[1760030830514,0.4381,4303.9,4303.0,1.92]
[1760030830853,0.4381,4303.9,4302.9,9.052]
[1760030831043,2.32352804,4303.8,4302.9,9.052]
[1760030831268,2.32352804,4303.8,4302.9,9.5145]
[1760030831403,2.32356707,4303.8,4303.0,2.32390869]
[1760030831742,2.32352804,4303.8,4303.1,3.97024228]
[1760030831946,0.002,4303.9,4303.1,1.64634087]
[1760030832313,2.32368156,4303.6,4303.1,1.64634087]
[1760030833040,2.32374591,4303.4,4303.1,1.18384087]
[1760030833252,0.002,4303.9,4302.9,9.052]
[1760030833406,2.32374712,4303.4,4302.9,9.052]
[1760030833741,2.32385886,4303.2,4302.9,9.052]
[1760030833918,0.4361,4303.7,4302.9,9.052]
[1760030834120,2.3237865,4303.4,4302.9,9.052]
[1760030834316,2.32396002,4303.0,4302.9,9.052]
[1760030834525,2.76006002,4303.0,4302.9,9.052]
[1760030834921,2.32390664,4303.1,4302.9,9.052]
[1760030835125,2.32396002,4303.0,4302.9,9.052]
[1760030835847,2.76006002,4303.0,4302.9,9.052]
[1760030837336,2.32396002,4303.0,4302.9,9.052]
[1760030837589,0.002,4303.9,4302.9,9.61520366]
[1760030837721,0.4361,4303.8,4302.9,9.052]
[1760030837907,2.32395347,4303.1,4302.9,9.052]
[1760030838332,0.002,4303.9,4302.9,9.052]
[1760030838534,2.32394658,4303.1,4302.9,9.052]
[1760030838810,2.32394658,4303.1,4302.2,11.99038]
[1760030838811,0.4361,4303.0,4302.6,2.416]
[1760030839041,2.32406804,4302.8,4302.7,6.634]
[1760030839218,0.4361,4303.0,4302.7,6.634]
[1760030840046,2.32406804,4302.8,4302.7,6.634]
[1760030841519,2.76016804,4302.8,4302.7,6.634]
[1760030841719,2.32402878,4302.9,4302.7,6.634]
[1760030842042,2.32406804,4302.8,4302.7,6.634]
[1760030842344,2.43993696,4303.1,4302.7,7.5506]
[1760030842345,0.116,4303.1,4302.7,7.5506]
[1760030842544,2.32392142,4303.1,4302.8,0.116]
[1760030842917,2.32391278,4303.1,4302.8,0.116]
[1760030843317,0.116,4303.5,4302.8,0.116]
[1760030843520,2.32396584,4303.0,4302.8,0.116]
[1760030843758,0.116,4303.5,4302.8,0.116]
[1760030843923,2.32398454,4303.0,4302.8,0.116]
[1760030844423,2.32401403,4302.9,4302.7,6.634]
[1760030844940,2.32406804,4302.8,4302.7,6.634]
[1760030845315,2.32402654,4302.9,4302.7,6.634]
[1760030845549,2.32406804,4302.8,4302.7,6.634]
[1760030846392,2.4399085,4303.1,4302.7,6.634]
[1760030846393,2.32403162,4302.9,4302.7,6.634]
[1760030846524,2.32396927,4303.0,4302.7,6.634]
[1760030846721,2.32396927,4303.0,4302.8,0.02324068]
[1760030847154,2.32391604,4303.1,4302.8,0.02324068]
[1760030847325,2.32396238,4303.0,4302.7,6.75]
[1760030847531,2.32380188,4303.3,4302.7,6.75]
[1760030847826,0.116,4303.4,4302.7,7.89902817]
[1760030848015,2.4397553,4303.4,4302.7,7.89902817]
[1760030848215,2.32390998,4303.1,4302.7,7.89902817]
[1760030848418,0.116,4303.4,4302.7,7.89902817]
[1760030848622,2.32551967,4303.9,4302.9,2.32396757]
[1760030848855,2.32380645,4303.3,4303.1,0.116]
[1760030849054,2.32380645,4303.3,4303.2,6.633]
[1760030849649,0.5479,4303.8,4303.2,6.633]
[1760030849853,2.32358203,4303.7,4303.2,6.633]
[1760030850025,2.32378318,4303.4,4303.2,6.633]
[1760030850741,2.3237034,4303.5,4303.2,6.633]
[1760030850949,0.002,4303.9,4303.3,0.46353798]
[1760030851153,2.32551184,4303.9,4303.4,3.2416538]
[1760030851459,2.75542884,4303.8,4303.4,2.416]
[1760030851760,2.32359425,4303.7,4303.4,2.416]
[1760030851918,0.5479,4303.8,4303.4,2.416]
[1760030852252,2.32358203,4303.7,4303.4,2.416]
[1760030852454,0.116,4303.8,4303.5,0.0232369]
[1760030852692,0.002,4303.9,4303.6,6.632]
[1760030852858,2.32549728,4303.9,4303.6,6.632]
[1760030853162,2.32352804,4303.8,4303.6,6.632]
[1760030853323,0.002,4303.9,4303.6,6.632]
[1760030853525,0.002,4303.9,4303.7,0.02323582]
[1760030853739,2.32354509,4303.8,4303.6,6.632]
[1760030853951,2.32354509,4303.8,4303.4,2.532]
[1760030853952,0.002,4303.9,4303.4,0.116]
[1760030854157,2.32362053,4303.7,4303.5,9.048]
[1760030854855,0.002,4303.9,4303.5,10.968]
[1760030855019,0.002,4303.9,4303.6,2.38353636]
[1760030855219,0.002,4303.9,4303.8,2.32352804]
[1760030855533,0.002,4303.9,4303.8,4.24352804]
[1760030855854,0.002,4303.9,4303.6,4.24361107]
[1760030856057,0.002,4303.9,4303.7,2.32354385]
[1760030856260,0.002,4303.9,4303.6,3.24916111]
[1760030856468,0.002,4303.9,4303.7,2.32354506]
[1760030856672,0.002,4303.9,4303.8,2.34676332]
[1760030856859,0.002,4303.9,4303.8,8.551]
[1760030857051,0.002,4303.9,4303.8,12.34017415]
[1760030857249,0.002,4303.9,4303.8,12.78047415]
[1760030857662,0.002,4303.9,4303.8,10.45694611]
[1760030857861,0.002,4303.9,4303.8,8.551]
[1760030858241,0.002,4303.9,4303.8,1.92]
[1760030858450,2.32547405,4303.9,4303.8,2.416]
[1760030858779,0.6689,4303.9,4303.0,2.416]
[1760030858942,2.32390602,4303.1,4303.0,4.671]
[1760030859139,2.75580602,4303.1,4303.0,4.671]
[1760030859937,2.32390602,4303.1,4303.0,4.671]
[1760030860144,2.75580602,4303.1,4303.0,2.255]
[1760030860663,2.32428412,4302.4,4302.3,2.417]
[1760030860854,2.75618412,4302.4,4302.3,6.632]
[1760030861468,2.75618412,4302.4,4302.3,0.001]
[1760030861841,3.38978412,4302.4,4302.3,0.001]
[1760030862278,5.30978412,4302.4,4302.3,0.001]
[1760030865210,2.32439217,4302.2,4302.1,1e-08]
[1760030865347,3.07399217,4302.2,4302.1,1e-08]
[1760030865679,3.51859217,4302.2,4302.1,1e-08]
[1760030866753,10.15059217,4302.2,4302.1,1e-08]
[1760030867174,2.76899217,4302.2,4302.1,1e-08]
[1760030867571,3.40259217,4302.2,4302.1,1e-08]
[1760030869452,2.9582083,4301.8,4301.7,1e-08]
[1760030869899,3.4028083,4301.8,4301.7,1e-08]
[1760030873874,0.4446,4302.3,4301.7,1e-08]
[1760030874074,2.32456422,4301.9,4301.7,1e-08]
[1760030874661,0.2237,4302.5,4301.7,1e-08]
[1760030874880,2.3244176,4302.2,4301.7,1e-08]
[1760030875086,2.3244031,4302.2,4301.7,1e-08]
[1760030875307,2.32417608,4302.6,4301.7,1e-08]
[1760030875485,2.32433905,4302.3,4301.8,0.4597]
[1760030875684,2.32433905,4302.3,4301.9,0.02324554]
[1760030875860,0.4446,4302.8,4301.8,0.4597]
[1760030876190,0.6683,4303.3,4301.9,0.48294554]
[1760030876399,0.6683,4303.3,4301.7,1e-08]
[1760030876689,2.32428906,4302.4,4302.0,3.272]
[1760030876888,0.4363,4303.0,4302.0,3.272]
[1760030877296,2.32437994,4302.3,4302.0,3.272]
[1760030877590,0.116,4302.6,4302.0,3.272]
[1760030877959,2.32437011,4302.3,4302.0,3.272]
[1760030878466,2.32441121,4302.2,4302.0,3.272]
[1760030878673,2.3242808,4302.5,4302.0,3.272]
[1760030878873,2.32429557,4302.4,4302.0,3.272]
[1760030879225,0.116,4302.6,4302.0,3.272]
[1760030879364,2.44018897,4302.6,4302.1,0.36204446]
[1760030879568,0.116,4302.6,4302.1,0.36204446]
[1760030879799,1.92,4303.7,4302.2,0.6049]
[1760030879958,0.116,4303.1,4302.4,2.44028117]
[1760030880162,2.32375301,4303.4,4302.8,0.116]
[1760030880163,2.32377461,4303.4,4302.8,0.116]
[1760030880461,2.43969697,4303.5,4302.9,9.049]
[1760030880888,0.116,4303.5,4302.9,9.049]
[1760030881310,2.32391025,4303.1,4302.9,9.049]
[1760030881521,2.32391025,4303.1,4302.8,0.116]
[1760030881522,2.32401403,4302.9,4302.8,0.116]
[1760030881797,2.32417607,4302.6,4302.5,2.417]
[1760030882010,0.116,4302.7,4302.5,1.871]
[1760030882167,0.002,4303.1,4302.5,1.871]
[1760030882502,0.116,4303.0,4302.5,1.871]
[1760030882709,2.43996225,4303.0,4302.5,2.37189]
[1760030882866,0.116,4303.0,4302.5,2.37189]
[1760030883262,0.002,4303.1,4302.5,2.37189]
[1760030883263,0.002,4303.1,4302.6,0.02324176]
[1760030883468,0.002,4303.1,4302.6,0.13924176]
[1760030883662,0.002,4303.1,4302.7,0.4472]
[1760030883888,0.002,4303.1,4303.0,2.32396002]
[1760030884074,0.002,4303.1,4303.0,2.34719962]
[1760030884270,0.002,4303.1,4303.0,2.79439962]
[1760030884492,0.002,4303.1,4303.0,2.77116002]
[1760030884818,0.002,4303.1,4303.0,4.71439962]
[1760030884966,0.002,4303.1,4303.0,15.12222943]
[1760030886163,0.002,4303.1,4303.0,5.45422943]
[1760030886368,0.002,4303.1,4303.0,24.16922943]
[1760030888882,0.002,4303.1,4303.0,24.80282943]
[1760030890000,0.002,4303.1,4303.0,6.08782943]
[1760030890201,0.002,4303.1,4303.0,5.45422943]
[1760030890382,0.002,4303.1,4303.0,24.16522943]
[1760030890582,0.002,4303.1,4303.0,5.45422943]
[1760030890811,0.002,4303.1,4303.0,24.16522943]
[1760030891387,0.002,4303.1,4303.0,3.13026941]
[1760030891586,0.002,4303.1,4303.0,2.416]
[1760030891898,0.002,4303.1,4303.0,9.044]
[1760030892104,0.002,4303.1,4303.0,10.964]
[1760030893093,0.002,4303.1,4303.0,13.73516002]
[1760030893319,0.002,4303.1,4303.0,15.98693047]
[1760030894214,0.002,4303.1,4303.0,6.94293047]
[1760030894390,0.002,4303.1,4303.0,22.95296002]
[1760030894803,0.002,4303.1,4303.0,23.40016002]
[1760030895281,0.002,4303.1,4303.0,4.69116002]
[1760030895484,0.002,4303.1,4303.0,13.73516002]
[1760030899820,0.002,4303.1,4303.0,2.3672]
[1760030899988,0.002,4303.1,4303.0,11.4112]
[1760030900320,2.32590602,4303.1,4303.0,2.416]
[1760030900502,2.76220602,4303.1,4303.0,9.043]
[1760030900814,2.32590602,4303.1,4303.0,9.043]
[1760030901020,0.002,4303.1,4303.0,9.043]
[1760030901207,0.002,4303.1,4302.7,0.116]
[1760030901512,0.002,4303.1,4302.8,9.043]
[1760030901728,0.4383,4303.1,4302.8,9.043]
[1760030902430,2.32401403,4302.9,4302.8,9.043]
[1760030903410,2.76026535,4303.0,4302.8,9.043]
[1760030903607,2.32401403,4302.9,4302.8,9.043]
[1760030903831,2.32406804,4302.8,4302.7,2.416]
[1760030904038,2.76036804,4302.8,4302.7,9.043]
[1760030905032,2.87636804,4302.8,4302.7,9.043]
[1760030906460,0.116,4302.8,4302.7,9.043]
[1760030906660,2.90956804,4302.8,4302.7,9.043]
[1760030906819,2.32412531,4302.7,4302.4,2.416]
[1760030907020,2.32412531,4302.7,4301.7,1e-08]
[1760030907021,2.32450246,4302.0,4301.7,1e-08]
[1760030907250,2.32448331,4302.1,4301.8,4.905]
[1760030907547,2.32451143,4302.0,4301.8,4.905]
[1760030907751,2.79396276,4302.1,4301.8,4.905]
[1760030907951,2.32455426,4301.9,4301.8,4.905]
[1760030908457,2.32455426,4301.9,4301.7,1e-08]
[1760030908458,2.3246083,4301.8,4301.7,1e-08]
[1760030908753,0.116,4302.1,4301.7,2.05100001]
[1760030908933,2.32456133,4301.9,4301.7,2.05100001]
[1760030909147,2.3246083,4301.8,4301.7,1e-08]
[1760030909353,2.3246083,4301.8,4301.7,0.11600001]
[1760030910058,2.7941083,4301.8,4301.7,0.11600001]
[1760030911276,2.9101083,4301.8,4301.7,0.11600001]
[1760030918877,2.4406083,4301.8,4301.7,0.11600001]
[1760030919077,2.4406083,4301.8,4301.7,1e-08]
[1760030919078,2.9101083,4301.8,4301.7,1e-08]
[1760030921905,0.116,4301.8,4301.7,1e-08]
[1760030922107,0.4695,4302.8,4301.7,3.20461295]
[1760030922308,2.32434926,4302.3,4301.7,0.90324663]
[1760030922501,2.4402983,4302.4,4301.7,3.2278926]
[1760030922698,2.32434308,4302.3,4301.7,0.88000001]
[1760030922903,2.44029015,4302.4,4301.8,2.32456424]
[1760030923099,2.44029015,4302.4,4301.9,0.116]
[1760030923299,0.116,4302.4,4302.0,0.023245]
[1760030923502,0.002,4303.1,4302.1,7.2503]
[1760030923819,2.32401403,4302.9,4302.3,0.116]
[1760030924026,0.116,4303.0,4302.3,0.116]
[1760030924027,2.32407498,4302.8,4302.4,2.44024284]
[1760030924317,0.116,4303.0,4302.4,2.417]
[1760030924318,2.32401403,4302.9,4302.4,2.417]
[1760030924478,0.116,4303.0,4302.4,2.417]
[1760030924679,2.32401599,4302.9,4302.4,2.417]
[1760030924874,2.75941599,4302.9,4302.4,2.417]
[1760030925078,2.32411633,4302.8,4302.4,2.417]
[1760030925681,0.4354,4302.9,4302.4,2.417]
[1760030925682,2.32402731,4302.9,4302.5,0.0232423]
[1760030926014,0.116,4303.0,4302.4,2.417]
[1760030926376,2.32407443,4302.8,4302.4,2.417]
[1760030927115,2.32403758,4302.9,4302.4,2.417]
[1760030927411,2.32417382,4302.7,4302.4,2.417]
[1760030927578,2.32423009,4302.5,4302.3,0.116]
[1760030927779,2.32401403,4302.9,4302.4,9.044]
[1760030928010,2.32416325,4302.7,4302.4,9.044]
[1760030928310,0.5514,4303.0,4302.4,9.044]
[1760030928518,2.32423009,4302.5,4302.4,9.044]
[1760030928809,2.32437834,4302.3,4301.7,1e-08]
[1760030929011,2.32437834,4302.3,4302.0,0.116]
[1760030929417,0.4354,4302.5,4302.0,0.116]
[1760030929619,0.4354,4302.4,4302.0,0.116]
[1760030929822,2.8755608,4302.7,4302.0,0.116]
[1760030929983,2.32438409,4302.3,4302.1,9.043]
[1760030930405,0.5514,4302.7,4302.1,9.043]
[1760030930588,0.5514,4302.7,4302.0,0.116]
[1760030930589,2.32439217,4302.2,4302.0,0.116]
[1760030930790,2.32439217,4302.2,4302.1,6.802]
[1760030930989,2.75979217,4302.2,4302.1,6.802]
[1760030932210,2.32439217,4302.2,4302.1,6.802]
[1760030932712,2.32428421,4302.4,4302.1,6.802]
[1760030932882,2.32428421,4302.4,4302.2,0.02324392]
[1760030933087,0.116,4302.6,4302.2,0.87506831]
[1760030933286,2.32402503,4302.9,4302.5,0.116]
[1760030933517,2.32402503,4302.9,4302.6,6.626]
[1760030933823,0.002,4302.7,4302.6,6.626]
[1760030934326,0.002,4302.7,4302.6,9.40777607]
[1760030934512,0.002,4302.7,4302.6,12.61698083]
[1760030934819,0.002,4302.7,4302.6,10.29280476]
[1760030935193,0.002,4302.7,4302.6,9.83520476]
[1760030935388,0.002,4302.7,4302.6,10.29280476]
[1760030935703,0.002,4302.7,4302.6,11.079]
[1760030936018,2.32612206,4302.7,4302.6,11.079]
[1760030936227,0.002,4302.7,4302.6,11.079]
[1760030936623,2.32612206,4302.7,4302.6,1.92]
[1760030936919,2.78002206,4302.7,4302.6,4.014]
[1760030937490,2.32441737,4302.2,4301.6,0.001]
[1760030937696,0.4559,4302.7,4301.8,8.313]
[1760030938022,2.32448817,4302.1,4301.9,9.041]
[1760030938222,2.32450023,4302.0,4301.9,10.961]
[1760030938398,0.4539,4302.4,4301.9,10.961]
[1760030938717,0.4539,4302.3,4301.9,10.961]
[1760030938922,2.32438698,4302.3,4301.9,10.961]
[1760030939220,0.4559,4302.7,4301.9,10.961]
[1760030939524,2.32450023,4302.0,4301.9,10.961]
[1760030939697,0.002,4302.7,4301.9,10.961]
[1760030939904,2.32439637,4302.2,4301.9,10.961]
[1760030940506,2.32433929,4302.3,4301.9,10.961]
[1760030940896,2.32441232,4302.2,4301.9,10.961]
[1760030941293,0.4559,4302.7,4301.7,1e-08]
[1760030941294,2.3246083,4301.8,4301.7,1e-08]
[1760030941503,2.32423009,4302.5,4301.8,2.416]
[1760030941820,2.77813009,4302.5,4301.8,2.416]
[1760030942030,2.77818412,4302.4,4301.8,2.416]
[1760030942340,0.4539,4302.3,4301.8,2.416]
[1760030942489,2.32455426,4301.9,4301.8,2.416]
[1760030943292,0.4539,4302.2,4301.8,2.416]
[1760030943493,0.002,4302.7,4301.9,0.02324554]
[1760030943838,0.002,4302.7,4301.9,1.92]
[1760030943995,2.32417607,4302.6,4301.9,1.92]
[1760030944199,2.32429751,4302.4,4301.9,1.92]
[1760030944714,0.002,4302.7,4302.0,0.4292]
[1760030944912,0.002,4302.7,4302.0,1.22256369]
[1760030945242,0.002,4302.7,4301.9,1.92]
[1760030945243,2.32434928,4302.3,4301.9,1.92]
[1760030945399,2.3243278,4302.4,4301.9,1.92]
[1760030945600,2.32424234,4302.5,4301.9,1.92]
[1760030945934,0.002,4302.7,4302.0,0.4292]
[1760030945935,2.32418303,4302.6,4302.0,0.4292]
[1760030946154,2.32612948,4302.7,4302.1,0.18094446]
[1760030946338,0.002,4302.7,4302.2,6.624]
[1760030946503,0.002,4302.7,4302.3,0.45244338]
[1760030946722,0.002,4302.7,4302.4,0.116]
[1760030946926,2.32616736,4302.7,4302.4,0.116]
[1760030947124,0.002,4302.7,4302.6,2.32417607]
[1760030947466,0.002,4302.7,4302.6,7.20637607]
[1760030948580,0.002,4302.7,4302.6,2.4652]
[1760030948882,0.002,4302.7,4302.6,19.6332]
[1760030949179,0.002,4302.7,4302.6,24.20914652]
[1760030950931,0.002,4302.7,4302.6,24.84274652]
[1760030951634,0.002,4302.7,4302.6,7.04114652]
[1760030951837,0.002,4302.7,4302.6,23.49537607]
[1760030952560,0.002,4302.7,4302.6,4.78937607]
[1760030952854,0.002,4302.7,4302.6,23.49437607]
[1760030954044,0.002,4302.7,4302.1,2.48209786]
[1760030954045,0.002,4302.7,4301.7,1e-08]
[1760030954246,2.32423009,4302.5,4301.7,2.41600001]
[1760030954450,0.4539,4302.4,4301.7,1e-08]
[1760030954659,2.3246083,4301.8,4301.7,0.08000001]
[1760030954826,2.7785083,4301.8,4301.7,0.08000001]
[1760030955266,2.7785083,4301.8,4301.7,1e-08]
[1760030955564,3.4121083,4301.8,4301.7,1e-08]
[1760030957930,3.4121083,4301.8,4301.1,0.005]
[1760030957931,4.6985083,4301.8,4301.1,1e-08]
[1760030958156,2.95853257,4301.2,4301.1,1e-08]
[1760030958657,3.41243257,4301.2,4301.1,1e-08]
[1760030960659,2.32493257,4301.2,4301.1,0.17800001]
[1760030960825,2.77883257,4301.2,4301.1,0.17800001]
[1760030961461,2.77883257,4301.2,4301.1,1e-08]
[1760030962954,2.32493257,4301.2,4301.1,1e-08]
[1760030963356,0.4539,4301.9,4301.1,1e-08]
[1760030963572,2.32448801,4302.1,4301.1,1e-08]
[1760030963867,2.32488237,4301.3,4301.1,1e-08]
[1760030964646,0.116,4301.6,4301.1,1e-08]
[1760030964847,2.44072435,4301.6,4301.1,1e-08]
[1760030965046,2.32490013,4301.3,4301.1,1e-08]
[1760030965527,2.32477042,4301.5,4301.1,1e-08]
[1760030965682,2.32486446,4301.4,4301.1,1e-08]
[1760030965893,2.32487918,4301.3,4301.1,0.42920001]
[1760030966351,2.32487918,4301.3,4301.1,1e-08]
[1760030966764,2.44072807,4301.6,4301.1,1e-08]
[1760030966765,2.32477042,4301.5,4301.1,1e-08]
[1760030966952,0.116,4301.6,4301.1,1e-08]
[1760030967153,2.32487852,4301.3,4301.1,1e-08]
[1760030967385,2.32493257,4301.2,4301.1,1e-08]
[1760030967685,0.471,4301.9,4301.1,2.42000001]
[1760030967848,2.32487852,4301.3,4301.1,2.42000001]
[1760030968049,2.32493257,4301.2,4301.1,2.42100001]
[1760030968463,2.79593257,4301.2,4301.1,4.84900001]
[1760030969071,2.79593257,4301.2,4301.1,9.04100001]
[1760030969474,2.79593257,4301.2,4301.1,0.00100001]
[1760030969692,2.79593257,4301.2,4301.1,2.49100001]
[1760030969989,2.79593257,4301.2,4301.1,2.41800001]
[1760030970192,2.79593257,4301.2,4301.1,4.89900001]
[1760030971094,0.002,4301.6,4301.1,5.38890001]
[1760030971310,0.6241202,4303.6,4301.1,5.38890001]
[1760030971311,0.002,4302.7,4302.0,2.32450023]
[1760030971472,0.002,4302.7,4302.0,21.07674523]
[1760030971661,0.002,4302.7,4302.0,21.52710023]
[1760030972104,0.002,4302.7,4302.0,4.71810023]
[1760030972305,0.002,4302.7,4302.0,5.91044715]
[1760030972803,0.002,4302.7,4302.0,3.58594692]
[1760030973044,0.002,4302.7,4302.0,11.89674133]
[1760030973173,0.002,4302.7,4302.0,14.22124156]
[1760030975397,0.002,4302.7,4302.0,14.31426535]
[1760030976619,0.002,4302.7,4302.0,23.98126535]
[1760030977205,0.002,4302.7,4302.0,23.97926535]
[1760030977405,0.002,4302.7,4302.0,14.1460358]
[1760030977605,0.002,4302.7,4302.0,26.2310358]
[1760030978205,0.002,4302.7,4302.0,26.3470358]
[1760030981122,0.002,4302.7,4302.0,19.7220358]
[1760030981348,0.002,4302.7,4302.0,24.09126535]
[1760030981795,0.002,4302.7,4302.4,2.32428412]
[1760030981995,0.002,4302.7,4302.4,10.88952696]
[1760030982196,0.002,4302.7,4302.4,11.45588412]
[1760030982505,0.002,4302.7,4302.4,11.54890142]
[1760030982712,0.002,4302.7,4302.4,12.95179746]
[1760030984727,0.002,4302.7,4302.4,6.32979746]
[1760030984920,0.002,4302.7,4302.4,25.03379746]
[1760030988856,0.002,4302.7,4302.4,6.32979746]
[1760030989002,0.002,4302.7,4302.4,0.0930173]
[1760030989338,0.002,4302.7,4302.4,9.5659173]
[1760030989705,0.002,4302.7,4302.4,13.81020142]
[1760030991732,0.002,4302.7,4302.4,11.4859173]
[1760030991953,0.002,4302.7,4302.4,2.0130173]
[1760030992147,0.002,4302.7,4302.4,11.0500173]
[1760030992355,0.002,4302.7,4302.4,11.4859173]
[1760030992674,0.002,4302.7,4302.4,13.81020142]
[1760030994033,0.002,4302.7,4302.4,11.0500173]
[1760030994757,0.002,4302.7,4302.4,13.37430142]
[1760030995072,0.002,4302.7,4302.4,11.0500173]
[1760030995381,0.002,4302.7,4302.4,2.0130173]
[1760030995533,0.002,4302.7,4302.4,11.0500173]
[1760030995934,0.002,4302.7,4302.4,8.6340173]
[1760030996239,0.002,4302.7,4302.4,11.0500173]
[1760030996770,0.002,4302.7,4302.4,10.957]
[1760030998953,0.002,4302.7,4302.4,11.073]
[1760030999587,0.002,4302.7,4302.4,11.5177]
[1760030999996,0.002,4302.7,4302.4,13.84198412]
[1760031000361,0.002,4302.7,4302.4,13.21968132]
[1760031000765,0.002,4302.7,4302.4,12.77498132]
[1760031000975,0.002,4302.7,4302.4,13.84198412]
[1760031001466,0.002,4302.7,4302.4,2.036]
[1760031001793,0.002,4302.7,4302.4,7.129]
[1760031001951,0.002,4302.7,4302.4,9.89798412]
[1760031002151,0.002,4302.7,4302.4,7.5737]
[1760031002371,0.002,4302.7,4302.4,9.89798412]
[1760031002574,0.002,4302.7,4302.4,7.129]
[1760031002778,2.32428412,4302.4,4302.0,0.45814133]
[1760031003132,0.002,4302.5,4302.2,1.92]
[1760031003392,0.002,4302.5,4302.3,4.015]
[1760031003573,2.32627381,4302.5,4302.3,4.015]
[1760031003765,0.002,4302.5,4302.3,4.015]
[1760031004086,2.32624534,4302.5,4302.3,4.015]
[1760031004589,0.002,4302.5,4302.3,4.015]
[1760031004884,0.002,4302.5,4302.4,4.24428412]
[1760031005085,0.002,4302.5,4302.4,4.71222696]
[1760031005288,0.002,4302.5,4302.4,4.68898412]
[1760031005891,0.002,4303.1,4302.5,4.24423009]
[1760031006067,0.002,4303.1,4303.0,4.24396002]
[1760031006271,0.002,4303.1,4303.0,20.53096002]
[1760031006473,0.002,4303.1,4303.0,20.97566002]
[1760031007004,0.002,4303.4,4303.1,0.6336]
[1760031007206,0.002,4303.4,4303.3,4.24379801]
[1760031007414,0.002,4303.4,4303.3,6.49556846]
[1760031007579,0.007,4303.9,4303.4,2.5536]
[1760031007773,0.007,4303.9,4303.8,1.92]
[1760031007977,0.007,4303.9,4303.8,10.88776332]
[1760031008214,0.007,4303.9,4303.8,11.30922804]
[1760031008511,0.007,4303.9,4303.8,6.29310905]
[1760031008700,0.007,4303.9,4303.8,23.39022804]
[1760031009492,0.007,4303.9,4303.8,5.32182804]
[1760031009680,0.002,4305.1,4304.1,2.32336609]
[1760031009896,0.002,4305.1,4304.2,1.92]
[1760031010101,0.002,4305.1,4304.4,1.92]
[1760031010413,0.4469,4304.6,4304.2,0.47073005]
[1760031010587,0.4469,4304.6,4303.2,0.4447]
[1760031010588,2.7700006,4304.6,4304.5,2.416]
[1760031010910,0.002,4305.1,4304.5,3.4917]
[1760031011087,2.32288404,4305.0,4304.5,3.4917]
[1760031011416,0.002,4305.1,4304.6,0.46793096]
[1760031011587,0.002,4305.1,4304.6,2.79102718]
[1760031011811,0.002,4305.1,4304.6,0.46793096]
[1760031012312,0.002,4305.1,4304.5,3.047]
[1760031012313,2.32292976,4305.0,4304.5,3.047]
[1760031012612,0.002,4305.1,4304.0,2.32336786]
[1760031012911,2.77177339,4305.1,4304.2,1.92]
[1760031013112,2.32299675,4304.8,4304.2,1.92]
[1760031013491,2.32484674,4305.1,4304.4,1.92]
[1760031013691,2.32484674,4305.1,4304.5,6.619]
[1760031013882,2.32288298,4305.0,4304.5,6.619]
[1760031014315,0.002,4305.1,4304.2,0.46018369]
[1760031014533,2.77194238,4304.7,4303.6,2.32362109]
[1760031014690,2.32331159,4304.3,4303.8,1.92]
[1760031014895,2.32331858,4304.2,4304.0,0.116]
[1760031015117,2.32331858,4304.2,4304.1,8.539]
[1760031015517,2.32331858,4304.2,4304.1,1.92]
[1760031015827,0.002,4304.7,4304.1,11.3997]
[1760031016027,0.002,4304.7,4304.3,0.116]
[1760031016198,0.002,4304.7,4304.4,6.619]
[1760031016393,0.002,4304.7,4304.3,0.116]
[1760031016595,2.32318939,4304.5,4304.4,7.914]
[1760031016808,0.002,4304.7,4304.4,1.92]
[1760031016998,0.002,4304.7,4304.5,2.4392315]
[1760031017311,0.002,4304.7,4304.5,2.416]
[1760031017695,0.002,4304.7,4304.6,4.71102718]
[1760031018023,0.002,4304.7,4304.6,4.80379622]
[1760031020428,0.005,4304.9,4304.7,1.92]
[1760031020641,0.005,4304.9,4304.8,10.86098829]
[1760031020833,0.005,4304.9,4304.8,11.30568829]
[1760031021003,0.005,4304.9,4304.8,10.72600875]
[1760031021201,0.005,4304.9,4304.8,1.92]
[1760031021428,2.32298829,4304.8,4303.3,0.4447]
[1760031021593,2.32337998,4304.1,4303.4,2.415]
[1760031021799,0.4469,4304.7,4303.4,2.997]
[1760031022033,0.4469,4304.7,4303.5,6.618]
[1760031022034,2.323548,4303.8,4303.5,6.618]